bitfinex/quotes_ETHUSD_20240731
["timestamp","ask_amount","ask_price","bid_price","bid_amount"]
[1722446165070,3.0,3306.8,3306.1,2.4524]
[1722446165298,3.0,3307.0,3306.2,0.09645712]
[1722446165598,6.0239,3307.0,3306.3,0.06047981]
[1722446165900,6.0239,3307.0,3306.4,2.3132]
[1722446165901,3.0,3307.0,3306.4,2.3132]
[1722446166241,3.0,3307.0,3306.5,0.09633529]
[1722446166435,6.02362,3307.3,3306.5,0.09633529]
[1722446166628,2.4251,3307.8,3306.5,0.09633529]
[1722446166796,5.40087,3308.2,3306.7,2.2817]
[1722446166994,5.40087,3308.2,3307.1,2.2817]
[1722446166995,3.02312,3307.9,3307.1,2.2817]
[1722446167246,3.02316,3307.8,3307.1,2.34216982]
[1722446167399,3.02316,3307.8,3307.2,0.03531674]
[1722446168102,3.02325,3307.7,3307.2,0.03531674]
[1722446168341,3.02302,3308.0,3307.2,0.03531674]
[1722446168659,3.02316,3307.8,3307.2,0.03531674]
[1722446168800,3.02316,3307.8,3307.1,2.34216982]
[1722446169150,3.02316,3307.8,3307.2,0.03531674]
[1722446169296,3.0,3307.7,3307.2,0.03531674]
[1722446169636,6.02327,3307.7,3307.1,2.34216982]
[1722446170234,6.02327,3307.7,3307.2,0.03531674]
[1722446170437,3.0,3307.7,3307.2,0.03531674]
[1722446170606,0.14705607,3308.3,3307.2,0.09578618]
[1722446170941,3.02298,3308.0,3307.2,0.09578618]
[1722446171148,3.02288,3308.1,3307.2,0.09578618]
[1722446171149,3.0,3307.9,3307.2,0.09578618]
[1722446171294,3.02288,3308.1,3307.3,0.26450656]
[1722446171295,3.0,3308.0,3307.3,0.26450656]
[1722446171495,3.0,3308.0,3307.4,0.09553175]
[1722446172768,3.0228,3308.2,3307.4,0.09553175]
[1722446172967,0.14705607,3308.3,3307.4,0.09553175]
[1722446172968,0.14705607,3308.3,3307.4,0.03506871]
[1722446173172,0.14705607,3308.3,3307.6,2.441]
[1722446173357,0.14705607,3308.3,3307.7,0.25014625]
[1722446173556,0.14705607,3308.3,3307.7,0.28499327]
[1722446173731,0.14705607,3308.3,3307.8,0.06045488]
[1722446173932,0.14705607,3308.3,3307.7,0.03484702]
[1722446174173,0.14705607,3308.3,3307.9,0.03476793]
[1722446174472,0.14705607,3308.3,3307.8,0.03480747]
[1722446174657,3.14705607,3308.3,3308.0,0.03472839]
[1722446174858,0.14705607,3308.3,3307.9,0.03476793]
[1722446175062,0.14705607,3308.3,3308.1,0.03468885]
[1722446175287,3.02279,3308.2,3308.0,0.03472839]
[1722446175432,3.0,3308.1,3307.3,2.73880656]
[1722446175634,3.0232,3307.8,3307.4,0.27388066]
[1722446175834,2.264,3308.2,3307.0,0.33362412]
[1722446175835,3.02358,3307.4,3307.0,0.33362412]
[1722446176050,3.0229,3308.1,3307.0,0.33362412]
[1722446176379,3.02354,3307.4,3307.0,0.33362412]
[1722446176548,3.0,3307.3,3307.0,0.33362412]
[1722446177088,3.0,3307.4,3307.0,0.33362412]
[1722446177933,3.0,3307.4,3307.1,0.06047483]
[1722446178174,3.0,3307.6,3307.0,0.59604653]
[1722446178382,6.02317,3307.8,3307.0,0.59604653]
[1722446178674,3.0,3307.8,3307.1,0.61046773]
[1722446178849,3.02293,3308.1,3307.2,2.2722]
[1722446179171,6.02298,3308.0,3307.8,0.33362412]
[1722446180074,3.0,3308.0,3307.8,0.33362412]
[1722446180376,3.0,3308.1,3307.8,0.33362412]
[1722446180565,6.02289,3308.1,3307.8,0.33362412]
[1722446180936,3.0,3308.1,3307.8,0.33362412]
[1722446181168,6.02279,3308.2,3307.8,0.33362412]
[1722446182685,3.02303,3308.0,3307.2,2.62007143]
[1722446182892,3.0,3307.9,3307.2,2.2722]
[1722446183186,3.0,3307.9,3307.3,0.03254724]
[1722446183552,3.02321,3307.8,3307.3,0.03254724]
[1722446183753,3.02349,3307.5,3307.3,0.03254724]
[1722446184005,3.02366,3307.3,3306.1,2.3837]
[1722446184397,3.02366,3307.3,3306.2,0.03090654]
[1722446184600,3.0,3307.2,3306.3,2.3837]
[1722446184891,6.02344,3307.5,3306.5,2.3837]
[1722446185099,6.02344,3307.5,3306.6,0.23837]
[1722446185100,3.02362,3307.3,3306.6,0.23837]
[1722446185252,3.0,3307.5,3306.5,2.3837]
[1722446185253,3.02404,3306.9,3306.5,2.3837]
[1722446185455,3.02404,3306.9,3305.8,35.0]
[1722446185456,3.02404,3306.9,3305.5,2.3262]
[1722446185654,6.02413,3306.8,3305.5,2.3262]
[1722446185884,3.0244,3306.5,3305.5,2.3262]
[1722446186087,3.02454,3306.3,3305.6,0.03030774]
[1722446186301,3.02462,3306.2,3305.6,0.03030774]
[1722446186484,3.02458,3306.3,3305.6,0.03030774]
[1722446186799,5.3498,3306.7,3305.7,0.03037396]
[1722446186800,3.02486,3306.0,3305.7,0.03037396]
[1722446186954,3.02498,3305.8,3305.7,0.03037396]
[1722446187161,3.0,3305.8,3304.4,5.45676]
[1722446187461,3.0,3305.8,3304.6,2.4305]
[1722446187683,3.0,3305.7,3304.6,2.4305]
[1722446187905,6.02513,3305.7,3304.7,0.03207926]
[1722446188078,3.02522,3305.6,3304.7,0.03207926]
[1722446188278,6.02528,3305.5,3304.7,0.03207926]
[1722446188591,6.02528,3305.5,3304.8,0.24625793]
[1722446188802,3.0,3305.5,3304.8,0.24625793]
[1722446189125,3.0,3305.8,3304.9,0.09249912]
[1722446189286,3.02514,3305.7,3304.9,0.03199437]
[1722446189669,3.0,3305.6,3304.9,0.09249858]
[1722446189873,3.0,3305.8,3304.9,0.09249858]
[1722446190113,3.0,3305.8,3305.0,2.9805]
[1722446190298,0.15302588,3306.1,3305.1,0.3982658]
[1722446190500,0.06718758,3305.2,3305.1,0.3982658]
[1722446190702,0.06718758,3305.2,3305.1,0.88776644]
[1722446191420,0.06718758,3305.2,3305.1,0.33776644]
[1722446192089,0.06718758,3305.2,3305.1,0.39826873]
[1722446192291,0.06718758,3305.2,3305.1,0.33776644]
[1722446193309,0.06718758,3305.2,3305.1,0.03046658]
[1722446194635,3.09271758,3305.2,3305.1,0.03046658]
[1722446194924,3.02565,3305.1,3304.4,2.482]
[1722446195081,3.02574,3305.0,3304.5,0.03070427]
[1722446195293,3.0,3304.9,3304.5,0.03070427]
[1722446195495,0.06718758,3304.6,3304.5,0.03070427]
[1722446196095,0.06718758,3304.6,3304.0,2.3267]
[1722446196291,0.06718758,3304.6,3304.1,0.26353279]
[1722446196570,0.06718758,3304.2,3304.1,0.26353279]
[1722446197099,0.06718758,3304.2,3304.1,0.81353279]
[1722446197300,0.06718758,3304.2,3304.1,0.87405081]
[1722446198144,0.06718758,3304.2,3304.1,0.81353279]
[1722446198650,0.06718758,3304.2,3304.1,0.87405075]
[1722446198947,0.06718758,3304.2,3304.1,0.81353279]
[1722446200098,0.06718758,3304.2,3304.1,0.87405084]
[1722446200743,0.06718758,3304.2,3304.1,0.81353279]
[1722446201348,0.06718758,3304.2,3304.1,0.87405071]
[1722446201950,0.06718758,3304.2,3304.1,3.90059071]
[1722446202249,0.06718758,3304.2,3304.1,0.81353279]
[1722446202440,0.06718758,3304.2,3304.1,3.84007279]
[1722446203145,0.06718758,3304.2,3304.1,9.37062214]
[1722446203506,0.06718758,3304.2,3304.1,6.34408214]
[1722446203908,0.06718758,3304.2,3304.1,6.28357279]
[1722446204106,0.06718758,3304.2,3304.1,3.25703279]
[1722446204531,0.06718758,3304.2,3304.1,6.28357279]
[1722446204805,0.06718758,3304.2,3304.1,6.34408236]
[1722446205206,0.06718758,3304.2,3304.1,6.28357279]
[1722446206013,0.06718758,3304.2,3304.1,9.31011279]
[1722446206407,0.06718758,3304.2,3304.1,44.31011279]
[1722446208925,0.06718758,3304.2,3304.1,47.33665279]
[1722446209240,0.06718758,3304.2,3304.1,12.33665279]
[1722446209567,2.2744,3306.1,3304.1,12.33665279]
[1722446209568,2.42415741,3306.1,3304.9,2.3526]
[1722446209738,2.42415741,3306.1,3305.0,36.087844]
[1722446209937,5.44886741,3306.1,3305.0,36.087844]
[1722446210139,5.44886741,3306.1,3305.1,0.03064411]
[1722446210467,3.02495,3305.9,3305.1,0.03064411]
[1722446210675,0.54491074,3305.9,3305.1,0.03064411]
[1722446210874,3.02506,3305.8,3305.1,0.03064411]
[1722446211174,6.02514,3305.7,3305.1,0.03064411]
[1722446211523,3.0,3305.7,3304.6,35.0]
[1722446211730,3.0,3305.7,3304.7,0.58078253]
[1722446211929,3.0,3305.9,3304.7,0.58078253]
[1722446212157,3.0,3305.9,3304.8,2.98520829]
[1722446212369,3.0,3305.9,3304.9,0.55]
[1722446212567,6.02489,3305.9,3304.9,0.55]
[1722446212769,3.02499,3305.8,3305.0,0.03066368]
[1722446212974,3.0,3305.7,3305.0,0.03066368]
[1722446213171,3.0,3305.7,3305.0,0.38725088]
[1722446214172,6.02508,3305.7,3305.0,0.38725088]
[1722446214481,3.02524,3305.6,3305.0,0.03066368]
[1722446214776,3.0254,3305.4,3304.2,2.3694]
[1722446215070,3.0254,3305.4,3304.2,37.3694]
[1722446215260,3.0,3305.3,3304.3,3.01595175]
[1722446215864,8.46967,3305.5,3304.3,3.01595175]
[1722446216061,8.46967,3305.5,3304.4,0.55]
[1722446216358,5.4444,3305.5,3304.5,0.0306642]
[1722446216560,2.4444,3305.5,3304.5,0.0306642]
[1722446217137,5.46967,3305.5,3304.5,0.0306642]
[1722446217342,3.0,3305.4,3304.5,0.0306642]
[1722446217684,2.4444,3305.5,3304.5,0.0306642]
[1722446217685,5.4444,3305.5,3304.5,0.0306642]
[1722446217997,2.4444,3305.5,3304.5,0.0306642]
[1722446218294,5.4444,3305.5,3304.5,0.0306642]
[1722446219696,3.0,3305.5,3304.5,0.0306642]
[1722446219853,3.14828465,3305.7,3304.6,2.4911]
[1722446220036,3.0,3305.7,3304.7,0.55479342]
[1722446220237,6.02514,3305.7,3304.7,0.55479342]
[1722446220438,6.02514,3305.7,3304.8,0.03055296]
[1722446220899,6.05046,3305.6,3304.8,0.03055296]
[1722446221041,6.02526,3305.5,3304.8,0.03055296]
[1722446221240,3.0,3305.5,3304.6,2.4911]
[1722446221442,3.02523,3305.6,3304.9,0.03051334]
[1722446221691,3.0254,3305.4,3304.6,2.4911]
[1722446221862,3.0254,3305.4,3305.0,0.03047373]
[1722446222146,3.0,3305.3,3305.1,0.03043412]
[1722446222342,3.0,3305.3,3304.6,2.4911]
[1722446222541,3.0,3305.5,3304.7,0.27970257]
[1722446222737,6.20118752,3305.8,3304.7,0.27970257]
[1722446222738,6.02511,3305.7,3304.7,0.27970257]
[1722446223562,3.0,3305.7,3304.8,0.55]
[1722446223783,5.2858,3305.9,3304.9,0.06050111]
[1722446224086,2.43845634,3305.9,3305.0,0.55]
[1722446224243,2.43845634,3305.9,3305.0,0.58034246]
[1722446224444,2.43845634,3305.9,3305.0,0.03034246]
[1722446224743,3.0,3306.0,3304.8,0.55]
[1722446224943,6.02482,3306.0,3304.9,0.03038207]
[1722446225336,3.0,3306.0,3304.9,0.03038207]
[1722446225640,3.02471,3306.1,3304.9,0.03038207]
[1722446225864,3.0,3306.0,3304.9,0.03038207]
[1722446226163,3.0,3306.0,3304.9,0.09088269]
[1722446226371,3.0,3306.0,3305.0,0.55]
[1722446226685,3.0,3306.0,3304.9,0.03038207]
[1722446226860,6.02486,3306.0,3304.9,0.03038207]
[1722446227283,3.0,3306.0,3304.9,0.09088272]
[1722446227450,3.0,3306.0,3305.0,2.8234]
[1722446227643,3.0,3306.1,3305.1,0.65450793]
[1722446227844,3.0,3306.1,3305.1,0.68474496]
[1722446228409,3.0,3306.1,3305.1,3.11630769]
[1722446228544,3.0,3306.1,3305.2,5.83108]
[1722446228747,3.0,3306.4,3305.3,3.08592426]
[1722446228985,5.51898,3306.6,3305.4,0.55]
[1722446228986,3.0,3306.5,3305.4,0.55]
[1722446229302,3.02478,3306.1,3305.4,0.03011821]
[1722446229647,3.0,3306.0,3305.4,0.09061889]
[1722446229853,3.02456,3306.3,3305.4,0.32524078]
[1722446229854,3.0,3306.2,3305.4,0.32524078]
[1722446230167,6.02464,3306.2,3305.4,0.32524078]
[1722446230985,6.02464,3306.2,3305.4,0.2647401]
[1722446231183,3.02504,3305.8,3305.4,0.03011821]
[1722446231397,6.02514,3305.7,3304.8,2.3547]
[1722446231696,3.02526,3305.5,3304.8,2.3547]
[1722446231903,3.0,3305.4,3304.8,2.3547]
[1722446232044,3.0,3305.4,3304.8,2.615081]
[1722446232249,3.0,3305.6,3304.8,2.615081]
[1722446233051,3.02437,3306.5,3304.8,2.615081]
[1722446233052,3.0,3305.8,3304.9,0.61050553]
[1722446233246,3.02456,3306.3,3305.1,2.4032]
[1722446233495,3.0,3306.2,3305.2,1.092888]
[1722446233892,0.1498563,3306.3,3305.3,0.06049486]
[1722446234095,2.4253,3306.4,3305.4,0.55]
[1722446234282,2.4253,3306.4,3305.5,0.06049484]
[1722446234688,1.82,3307.6,3305.5,0.06049484]
[1722446234689,3.0242,3306.7,3305.6,2.3366]
[1722446234890,3.0242,3306.7,3305.7,0.30019963]
[1722446235193,5.49743,3306.9,3305.7,0.23970948]
[1722446235194,3.02431,3306.6,3305.7,0.23970948]
[1722446235395,3.02413,3306.8,3305.8,0.06049058]
[1722446235597,3.02422,3306.7,3305.8,0.06049058]
[1722446235754,3.02425,3306.6,3305.8,0.06049058]
[1722446236202,3.0,3306.5,3305.8,0.32417059]
[1722446236418,3.0,3306.6,3305.8,0.32417059]
[1722446237019,3.0,3306.6,3305.9,0.06048886]
[1722446237379,3.0,3306.6,3305.8,0.26368001]
[1722446237562,3.0,3306.6,3305.9,0.06048888]
[1722446240658,3.0,3306.6,3305.8,0.26368001]
[1722446240659,3.0244,3306.5,3305.8,0.26368001]
[1722446240818,3.0,3306.4,3305.8,0.26368001]
[1722446241121,6.02448,3306.4,3305.6,2.3366]
[1722446241535,3.0,3306.4,3305.6,2.3366]
[1722446241819,3.0,3306.7,3305.7,0.06049808]
[1722446242621,3.15127032,3306.8,3305.8,2.3174]
[1722446242774,3.02418,3306.7,3305.9,0.06048897]
[1722446243199,3.0,3306.6,3305.9,0.29827787]
[1722446243568,3.0,3306.7,3305.9,0.29827787]
[1722446243767,6.02418,3306.7,3305.9,0.29827787]
[1722446244188,6.02418,3306.7,3306.0,0.03187697]
[1722446244772,3.02433,3306.6,3306.0,0.03187697]
[1722446244990,3.02433,3306.6,3305.5,2.467]
[1722446244991,3.02453,3306.3,3305.5,2.467]
[1722446245222,3.02472,3306.1,3305.6,0.02991021]
[1722446245427,3.02486,3306.0,3305.6,0.02991021]
[1722446245629,3.0,3305.9,3305.2,2.467]
[1722446245836,3.02471,3306.1,3305.2,2.467]
[1722446246132,3.0249,3305.9,3305.2,2.7137]
[1722446246279,3.0,3305.8,3305.3,0.0464552]
[1722446246481,3.0,3306.0,3305.2,2.7137]
[1722446246793,3.0,3306.1,3305.3,0.0464552]
[1722446247526,6.02471,3306.1,3305.3,0.0464552]
[1722446247977,3.0248,3306.0,3305.3,0.0464552]
[1722446248174,3.0,3305.9,3305.3,0.0464552]
[1722446248634,3.0,3305.9,3305.2,2.7137]
[1722446248779,3.0,3305.9,3305.4,0.0463892]
[1722446248979,3.0,3305.9,3305.3,0.27137]
[1722446249278,3.0,3305.9,3305.4,0.0463892]
[1722446249477,3.0,3305.9,3305.3,0.27137]
[1722446249705,3.02498,3305.8,3305.5,0.0463232]
[1722446249877,3.02498,3305.8,3305.4,0.0463892]
[1722446249878,3.0,3305.7,3305.4,0.0463892]
[1722446250074,3.0,3305.7,3305.2,2.467]
[1722446250424,3.02489,3305.9,3305.3,0.2467]
[1722446250730,3.02508,3305.7,3305.3,0.0464552]
[1722446250914,3.0,3305.6,3305.3,0.0464552]
[1722446251123,3.0,3305.6,3304.9,7.29]
[1722446251284,3.0,3305.8,3305.4,0.0463892]
[1722446251482,6.02485,3306.0,3305.3,2.4819]
[1722446251684,3.0,3306.0,3305.5,0.0463232]
[1722446252017,3.0,3306.2,3305.6,0.0462572]
[1722446252206,0.1504671,3306.3,3305.6,0.0462572]
[1722446252514,3.0,3306.4,3305.7,0.04619121]
[1722446252893,3.0,3306.4,3305.3,2.73009]
[1722446253100,3.0,3306.4,3305.4,1.854562]
[1722446253314,3.0,3306.4,3305.4,1.90079859]
[1722446254328,3.0,3306.4,3305.4,0.04623659]
[1722446254329,3.02491,3305.9,3305.4,0.04623659]
[1722446254701,3.0,3305.8,3305.4,0.04623659]
[1722446254898,3.0,3305.8,3305.2,7.29]
[1722446255100,3.0,3305.8,3305.5,0.04610861]
[1722446255413,3.0,3305.8,3305.2,7.29]
[1722446255614,3.0,3305.8,3305.6,0.04604261]
[1722446255850,3.0,3306.2,3305.6,0.04604261]
[1722446256049,3.02477,3306.1,3305.2,8.24804]
[1722446256347,3.0,3306.0,3305.7,0.04597662]
[1722446256479,3.0,3306.0,3305.2,8.24804]
[1722446256480,2.2793,3305.9,3305.2,8.24804]
[1722446256686,1.02959044,3305.8,3304.4,2.3747]
[1722446256926,4.86781938,3305.8,3304.4,2.3747]
[1722446257136,3.02551,3305.3,3304.4,2.3747]
[1722446257316,3.0,3305.2,3304.4,2.3747]
[1722446257635,6.02559,3305.2,3304.4,2.3747]
[1722446257805,3.0,3305.2,3304.4,2.3747]
[1722446258371,3.02572,3305.0,3304.4,2.3747]
[1722446258636,3.0,3304.9,3304.1,2.2581]
[1722446259346,3.0259,3304.8,3304.1,2.2581]
[1722446259709,2.4091,3305.3,3303.3,2.4708]
[1722446259710,3.02613,3304.6,3303.3,2.4708]
[1722446259866,3.02632,3304.4,3303.4,2.98520829]
[1722446260222,3.0,3304.3,3303.4,2.98520829]
[1722446261920,3.0,3304.3,3303.5,0.55]
[1722446262782,3.0,3304.3,3302.2,0.3033]
[1722446262783,2.4772,3304.2,3303.1,0.06053551]
[1722446263063,3.02691,3303.7,3302.5,2.3757]
[1722446263490,3.02677,3303.9,3302.5,2.3757]
[1722446263716,6.02683,3303.8,3302.5,2.3757]
[1722446264190,6.02683,3303.8,3302.6,0.55]
[1722446264409,6.02683,3303.8,3302.7,0.29257]
[1722446264410,3.027,3303.6,3302.7,0.29257]
[1722446264547,3.027,3303.6,3302.8,0.55]
[1722446264943,3.02692,3303.7,3302.8,0.55]
[1722446265748,3.0,3303.8,3302.8,0.55]
[1722446269924,3.0,3303.8,3302.9,2.37764055]
[1722446270210,3.0,3304.0,3303.0,1.14553605]
[1722446270414,3.0,3304.0,3303.1,35.0]
[1722446270575,3.0,3304.0,3303.2,0.55]
[1722446270789,6.02664,3304.0,3303.2,0.55]
[1722446271462,3.0,3304.0,3303.2,0.55]
[1722446271665,3.14703821,3304.1,3303.3,2.98520829]
[1722446271863,3.0,3304.1,3303.3,2.98520829]
[1722446272163,6.02656,3304.1,3303.3,2.98520829]
[1722446273010,3.0,3304.1,3303.3,2.98520829]
[1722446273562,3.0,3304.1,3303.2,0.55]
[1722446273763,3.0,3304.1,3303.1,0.55]
[1722446273764,6.02654,3304.1,3303.1,0.55]
[1722446276680,3.0,3304.1,3303.3,2.2638]
[1722446276910,6.02619,3304.5,3303.4,0.61053062]
[1722446277106,6.02619,3304.5,3303.5,0.28743306]
[1722446278417,3.0,3304.5,3303.6,0.06053034]
[1722446278838,6.02618,3304.5,3303.6,0.06053034]
[1722446279248,6.02618,3304.5,3303.5,0.28743306]
[1722446281124,3.02641,3304.3,3303.5,0.28743306]
[1722446281456,3.0,3304.2,3303.5,0.28743306]
[1722446282653,3.0,3304.4,3303.5,0.28743306]
[1722446283528,3.0,3304.5,3303.5,0.28743306]
[1722446284045,3.0,3304.5,3303.6,0.06053052]
[1722446284238,3.14953911,3304.6,3303.6,0.06053052]
[1722446284444,3.14953911,3304.6,3303.6,0.33751436]
[1722446284819,6.17562911,3304.6,3303.6,0.33751436]
[1722446285157,6.17562911,3304.6,3303.5,0.28743306]
[1722446286342,6.17562911,3304.6,3303.6,2.53013058]
[1722446286343,3.0,3304.6,3303.6,2.53013058]
[1722446286657,3.02576,3305.0,3303.8,2.4696]
[1722446286856,3.0,3304.9,3303.9,0.66517592]
[1722446287056,3.26649,3305.2,3303.9,0.66517592]
[1722446287057,0.24091,3305.2,3304.0,0.06052693]
[1722446287271,0.24091,3305.2,3304.1,2.4696]
[1722446287556,3.02546,3305.3,3304.2,0.55]
[1722446288641,3.0,3305.2,3304.2,0.55]
[1722446288840,3.0,3305.2,3304.3,2.44581613]
[1722446289042,0.14800938,3305.4,3304.3,2.44581613]
[1722446289043,3.14800938,3305.4,3304.4,0.54722561]
[1722446289272,3.0,3305.3,3304.5,0.06051588]
[1722446289477,3.0,3305.6,3304.5,0.06051588]
[1722446289791,3.0,3305.6,3304.4,0.54722561]
[1722446289935,5.41847187,3305.7,3304.3,2.3853]
[1722446290133,8.44359187,3305.7,3304.4,0.06051618]
[1722446290533,3.15037187,3305.7,3304.6,2.3802]
[1722446290750,0.15037187,3305.7,3304.7,0.06051233]
[1722446290964,7.47,3305.8,3304.9,2.3802]
[1722446291183,7.47,3305.8,3305.0,0.60716711]
[1722446292263,7.47,3305.8,3305.0,0.06050606]
[1722446292588,3.02474,3306.1,3305.0,0.06050606]
[1722446292751,0.14971677,3306.1,3305.0,3.08620606]
[1722446292948,3.02438,3306.5,3305.1,5.94207]
[1722446293181,3.02438,3306.5,3305.2,0.06049995]
[1722446293380,1.1399231,3306.4,3305.2,0.66075694]
[1722446293591,1.1399231,3306.4,3305.3,3.63590991]
[1722446293761,11.399111,3306.6,3305.4,2.4884]
[1722446293962,3.02436,3306.5,3305.5,0.06049663]
[1722446294199,3.0,3306.4,3305.5,0.06049663]
[1722446294408,8.52334921,3306.6,3305.4,2.4884]
[1722446294409,6.0244,3306.5,3305.4,2.4884]
[1722446294559,6.04901,3306.4,3305.4,2.4884]
[1722446294759,6.929421,3306.3,3305.4,2.4884]
[1722446295077,0.904901,3306.3,3305.4,2.4884]
[1722446295288,3.904901,3306.3,3305.4,2.4884]
[1722446296003,3.0,3306.5,3305.4,2.4884]
[1722446296676,6.02439,3306.5,3305.4,2.4884]
[1722446298409,6.02439,3306.5,3305.5,0.06049671]
[1722446298577,3.0,3306.5,3305.5,0.06049671]
[1722446298765,3.0,3306.5,3305.5,3.02519]
[1722446299112,0.14849821,3306.6,3305.7,2.3329]
[1722446299410,3.0,3306.9,3305.8,0.06049204]
[1722446299583,5.4729,3307.0,3305.8,0.06049204]
[1722446300108,3.02399,3306.9,3305.8,0.06049204]
[1722446300310,3.0,3306.8,3305.8,0.06049204]
[1722446300492,6.873769,3306.8,3305.8,0.06049204]
[1722446301714,0.14884406,3307.0,3305.9,2.4467]
[1722446302019,0.47446877,3307.7,3306.1,2.4467]
[1722446302020,3.02347,3307.5,3306.1,2.4467]
[1722446302170,5.46289,3307.7,3306.3,2.4482]
[1722446302370,3.02344,3307.5,3306.4,0.29982]
[1722446303225,3.02354,3307.4,3306.4,0.29982]
[1722446303738,3.0,3307.3,3306.4,0.29982]
[1722446305406,6.02362,3307.3,3306.4,0.29982]
[1722446306056,3.0237,3307.2,3306.3,2.4482]
[1722446306333,3.602362,3307.3,3306.0,9.7071]
[1722446306334,3.02421,3306.7,3306.0,9.7071]
[1722446306506,3.02393,3307.0,3306.0,2.4171]
[1722446306839,3.02412,3306.8,3306.0,2.4171]
[1722446307046,3.0,3306.7,3306.0,2.4171]
[1722446308038,3.0243,3306.6,3306.0,2.4171]
[1722446308239,3.0,3306.5,3306.0,2.4171]
[1722446309078,3.0,3306.7,3306.0,2.4171]
[1722446309570,6.02418,3306.7,3306.0,2.4171]
[1722446309746,3.0,3306.7,3306.0,2.4171]
[1722446310069,3.02426,3306.6,3306.0,2.4171]
[1722446310240,3.0,3306.5,3306.0,2.4171]
[1722446310447,3.0,3306.7,3306.0,2.4171]
[1722446311349,3.0,3306.8,3306.0,2.65881]
[1722446311549,3.0,3307.1,3306.0,2.65881]
[1722446311872,3.02389,3307.0,3306.0,2.65881]
[1722446312049,3.0,3306.9,3306.0,2.65881]
[1722446313394,3.0,3306.9,3306.0,2.4171]
[1722446313395,6.64119981,3306.9,3306.0,2.4171]
[1722446313546,3.61721981,3306.9,3306.0,2.4171]
[1722446313747,0.61721981,3306.9,3306.0,2.4171]
[1722446313949,3.0,3306.8,3306.0,2.4171]
[1722446314267,0.61721981,3306.9,3306.0,2.4171]
[1722446314870,0.66411598,3306.8,3306.0,2.4171]
[1722446315187,3.66411598,3306.8,3306.0,2.4171]
[1722446315336,6.02395,3307.0,3306.0,2.4171]
[1722446316214,3.0,3307.0,3306.0,2.4171]
[1722446316401,3.14830813,3307.1,3306.0,2.4171]
[1722446316599,6.02385,3307.1,3306.0,2.4171]
[1722446316796,3.0239,3307.0,3306.0,2.4171]
[1722446317012,3.0,3306.9,3306.0,2.65881]
[1722446318096,3.02407,3306.8,3306.0,2.65881]
[1722446318297,3.0,3306.7,3306.0,2.4171]
[1722446318508,3.0,3306.9,3306.0,2.4171]
[1722446318718,3.02414,3306.8,3306.0,2.4171]
[1722446318880,3.0,3306.7,3306.0,2.4171]
[1722446320224,6.02417,3306.7,3306.0,2.4171]
[1722446322482,3.02434,3306.6,3306.0,2.4171]
[1722446322693,3.904816,3306.7,3305.6,2.2792]
[1722446322694,3.02467,3306.2,3305.6,2.2792]
[1722446322885,3.904816,3306.7,3305.2,2.2792]
[1722446322886,3.02456,3306.3,3305.2,2.2792]
[1722446323087,3.0,3306.5,3305.2,2.2792]
[1722446323088,3.02483,3306.0,3305.2,2.2792]
[1722446323269,7.47,3306.4,3305.2,2.2792]
[1722446323270,3.0,3305.9,3305.2,2.2792]
[1722446323493,6.02457,3306.3,3305.3,0.22792]
[1722446323675,3.02465,3306.2,3305.2,2.2792]
[1722446323880,3.0,3306.1,3305.2,2.2792]
[1722446324110,6.02476,3306.1,3305.2,2.2792]
[1722446324865,3.02481,3306.0,3305.2,2.2792]
[1722446325099,6.02491,3305.9,3305.2,2.2792]
[1722446325414,6.02499,3305.8,3305.2,2.2792]
[1722446325571,3.02517,3305.6,3305.2,2.2792]
[1722446325770,3.0,3305.5,3305.2,2.2792]
[1722446326319,6.05005,3305.8,3305.2,2.2792]
[1722446326320,3.0,3305.7,3305.2,2.2792]
[1722446326908,6.02508,3305.7,3305.2,2.2792]
[1722446328574,7.0203361,3305.7,3305.2,2.2792]
[1722446329234,6.02508,3305.7,3305.2,2.2792]
[1722446331396,9.05023,3305.7,3305.2,2.2792]
[1722446332030,6.02508,3305.7,3305.2,2.2792]
[1722446332628,3.0,3305.7,3305.2,2.2792]
[1722446332827,3.0,3305.8,3305.2,2.2792]
[1722446333144,6.0248,3306.0,3305.2,2.2792]
[1722446333345,6.94453732,3306.0,3305.2,2.2792]
[1722446333707,3.02499,3305.8,3305.2,2.2792]
[1722446333902,3.0,3305.7,3305.2,2.2792]
[1722446334103,3.02517,3305.6,3305.2,2.2792]
[1722446334345,3.0,3305.5,3305.2,2.2792]
[1722446334557,6.02527,3305.5,3304.6,2.4528]
[1722446334847,6.02527,3305.5,3304.7,2.98520829]
[1722446335001,6.02527,3305.5,3304.6,2.4528]
[1722446335002,3.0,3305.5,3304.6,2.4528]
[1722446335202,6.02517,3305.6,3304.6,2.4528]
[1722446335417,6.02517,3305.6,3304.7,35.0]
[1722446336328,3.0,3305.6,3304.7,35.0]
[1722446336541,3.0,3305.6,3304.8,5.43800829]
[1722446337542,3.0,3305.8,3304.8,5.43800829]
[1722446337705,3.0,3305.8,3304.9,2.4528]
[1722446338018,3.0,3305.9,3304.9,2.4528]
[1722446338343,3.02499,3305.8,3304.9,2.4528]
[1722446338646,3.0,3305.7,3304.9,5.43800829]
[1722446338852,6.02494,3305.9,3304.9,5.43800829]
[1722446339151,3.02501,3305.8,3304.9,5.43800829]
[1722446339324,3.0,3305.7,3304.9,5.43800829]
[1722446339853,3.0,3305.7,3304.9,2.4528]
[1722446340053,3.0,3305.9,3304.9,2.4528]
[1722446340256,3.0249,3305.9,3304.9,2.4528]
[1722446340433,6.02499,3305.8,3304.9,2.4528]
[1722446340632,3.02499,3305.8,3304.9,2.4528]